[Event "Early-Titled-Tuesday-Blitz-September-12-2023"]
[Site "Chess.com"]
[Date "2023.09.12"]
[Round "5"]
[White "Iskusnyh"]
[Black "DarZay"]
[Result "1-0"]
[WhiteElo "2626"]
[BlackElo "2258"]
[TimeControl "180+1"]
[EndTime "8:55:03 PDT"]
[Termination "Iskusnyh won by checkmate"]

1. d4 {[%clk 0:03:00.9]} 1... d5 {[%clk 0:02:59]} 2. c4 {[%clk 0:03:00.3]} 2...
e6 {[%clk 0:02:59.1]} 3. Nf3 {[%clk 0:03:00.5]} 3... Be7 {[%clk 0:02:58.5]} 4.
g3 {[%clk 0:03:00]} 4... Nf6 {[%clk 0:02:58.5]} 5. Bg2 {[%clk 0:03:00.4]} 5...
O-O {[%clk 0:02:58.8]} 6. O-O {[%clk 0:03:01.1]} 6... dxc4 {[%clk 0:02:58.7]} 7.
Na3 {[%clk 0:03:00.4]} 7... Bxa3 {[%clk 0:02:54.9]} 8. bxa3 {[%clk 0:02:58.5]}
8... Nd5 {[%clk 0:02:35.7]} 9. Qc2 {[%clk 0:02:36.9]} 9... Nb6 {[%clk
0:02:32.4]} 10. Rd1 {[%clk 0:02:34.5]} 10... Bd7 {[%clk 0:02:28.2]} 11. Ng5
{[%clk 0:02:17.7]} 11... g6 {[%clk 0:02:24.6]} 12. Qe4 {[%clk 0:02:16.5]} 12...
Bc6 {[%clk 0:02:21.9]} 13. Qh4 {[%clk 0:02:15.9]} 13... h5 {[%clk 0:02:09.7]}
14. e4 {[%clk 0:02:15]} 14... N8d7 {[%clk 0:01:49.9]} 15. g4 {[%clk 0:01:59.7]}
15... Qf6 {[%clk 0:01:18.6]} 16. gxh5 {[%clk 0:01:45.1]} 16... gxh5 {[%clk
0:01:18.7]} 17. Qxh5 {[%clk 0:01:43.2]} 17... Qg7 {[%clk 0:01:11.8]} 18. Be3
{[%clk 0:01:29.7]} 18... Nf6 {[%clk 0:01:08.9]} 19. Qh4 {[%clk 0:01:27.6]} 19...
Qh8 {[%clk 0:01:03.6]} 20. Qg3 {[%clk 0:01:15.5]} 20... Qg7 {[%clk 0:01:03.6]}
21. Kh1 {[%clk 0:01:13.4]} 21... Nh5 {[%clk 0:00:48.4]} 22. Qh4 {[%clk
0:01:11.7]} 22... Qg6 {[%clk 0:00:42.2]} 23. Rg1 {[%clk 0:01:01.8]} 23... f6
{[%clk 0:00:37.7]} 24. Nxe6 {[%clk 0:00:57.3]} 24... Kf7 {[%clk 0:00:29.1]} 25.
d5 {[%clk 0:00:44.6]} 25... Rh8 {[%clk 0:00:21.5]} 26. Bf3 {[%clk 0:00:38.9]}
26... Qh7 {[%clk 0:00:21]} 27. Bxh5+ {[%clk 0:00:30.6]} 27... Qxh5 {[%clk
0:00:20.6]} 28. Rg7+ {[%clk 0:00:29.8]} 28... Ke8 {[%clk 0:00:18.9]} 29. Nxc7+
{[%clk 0:00:23.5]} 29... Kd8 {[%clk 0:00:14.2]} 30. Ne6+ {[%clk 0:00:23]} 30...
Kc8 {[%clk 0:00:14.1]} 31. Qxh5 {[%clk 0:00:20.5]} 31... Rxh5 {[%clk 0:00:13.2]}
32. Rg8+ {[%clk 0:00:20.8]} 32... Kd7 {[%clk 0:00:13.5]} 33. Rxa8 {[%clk
0:00:20.1]} 33... Nxd5 {[%clk 0:00:13.2]} 34. Nc5+ {[%clk 0:00:15.7]} 34... Kd6
{[%clk 0:00:10.7]} 35. exd5 {[%clk 0:00:15.6]} 35... Rxd5 {[%clk 0:00:08.2]} 36.
Kg1 {[%clk 0:00:15]} 36... Rh5 {[%clk 0:00:07]} 37. Rd1+ {[%clk 0:00:13.2]}
37... Kc7 {[%clk 0:00:06.6]} 38. Ne6# {[%clk 0:00:11]} 1-0

[Event "Early-Titled-Tuesday-Blitz-September-12-2023"]
[Site "Chess.com"]
[Date "2023.09.12"]
[Round "5"]
[White "MaxLeto"]
[Black "DavidLana1987"]
[Result "1-0"]
[WhiteElo "2396"]
[BlackElo "2586"]
[TimeControl "180+1"]
[EndTime "8:55:05 PDT"]
[Termination "MaxLeto won by resignation"]

1. g4 {[%clk 0:03:00.9]} 1... d5 {[%clk 0:02:57.5]} 2. Bg2 {[%clk 0:03:00.9]}
2... Bxg4 {[%clk 0:02:55.4]} 3. c4 {[%clk 0:03:00.7]} 3... e6 {[%clk 0:02:53.2]}
4. Qb3 {[%clk 0:03:00.4]} 4... Nd7 {[%clk 0:02:50.3]} 5. Qxb7 {[%clk 0:02:59.9]}
5... Rb8 {[%clk 0:02:49.4]} 6. Qxa7 {[%clk 0:02:48.2]} 6... Bc5 {[%clk
0:02:48.5]} 7. Qa4 {[%clk 0:02:48.2]} 7... Nf6 {[%clk 0:02:46.2]} 8. cxd5 {[%clk
0:02:46.2]} 8... exd5 {[%clk 0:02:45.7]} 9. d4 {[%clk 0:02:38.2]} 9... Bb4+
{[%clk 0:02:44.2]} 10. Nc3 {[%clk 0:02:34.7]} 10... O-O {[%clk 0:02:43.8]} 11.
Nf3 {[%clk 0:02:29.1]} 11... c5 {[%clk 0:02:41]} 12. Be3 {[%clk 0:02:26.8]}
12... Nb6 {[%clk 0:02:38.9]} 13. Qc2 {[%clk 0:02:16.2]} 13... Nc4 {[%clk
0:02:38.7]} 14. O-O {[%clk 0:02:12.7]} 14... Re8 {[%clk 0:02:30.4]} 15. Nd1
{[%clk 0:01:52]} 15... Bh5 {[%clk 0:02:27.9]} 16. dxc5 {[%clk 0:01:29.7]} 16...
Bg6 {[%clk 0:02:26.9]} 17. Qc1 {[%clk 0:01:27.7]} 17... Ng4 {[%clk 0:02:23.8]}
18. a3 {[%clk 0:01:15.9]} 18... Ba5 {[%clk 0:02:12.5]} 19. b4 {[%clk 0:01:08.4]}
19... Bc7 {[%clk 0:02:09.9]} 20. Bg5 {[%clk 0:01:04.3]} 20... f6 {[%clk
0:01:46.9]} 21. Bf4 {[%clk 0:01:04.5]} 21... Rxe2 {[%clk 0:01:45.2]} 22. Nd4
{[%clk 0:00:47.3]} 22... Rd2 {[%clk 0:01:03.9]} 23. Bxd2 {[%clk 0:00:38.9]}
23... Bxh2+ {[%clk 0:01:03.8]} 24. Kh1 {[%clk 0:00:39.6]} 24... Be5 {[%clk
0:01:02.5]} 25. Nc6 {[%clk 0:00:33.1]} 25... Qe8 {[%clk 0:01:02.3]} 26. Nxe5
{[%clk 0:00:32.4]} 26... fxe5 {[%clk 0:00:58.7]} 27. Bxd5+ {[%clk 0:00:30.7]}
27... Bf7 {[%clk 0:00:59.2]} 28. Qxc4 {[%clk 0:00:29.5]} 28... Bxd5+ {[%clk
0:00:55.7]} 29. Qxd5+ {[%clk 0:00:30.4]} 29... Kh8 {[%clk 0:00:56.5]} 30. Qg2
{[%clk 0:00:21.9]} 30... Qe6 {[%clk 0:00:52.7]} 31. Ne3 {[%clk 0:00:20.7]} 31...
Nf6 {[%clk 0:00:52.3]} 32. Bc3 {[%clk 0:00:20.2]} 32... Rf8 {[%clk 0:00:50.5]}
33. Rae1 {[%clk 0:00:19.9]} 33... Nh5 {[%clk 0:00:49.3]} 34. Nd5 {[%clk
0:00:19.1]} 34... Qh6 {[%clk 0:00:34.2]} 35. Kg1 {[%clk 0:00:16.2]} 35... Nf4
{[%clk 0:00:29.8]} 36. Nxf4 {[%clk 0:00:15.5]} 36... exf4 {[%clk 0:00:27.3]} 37.
Re7 {[%clk 0:00:10.8]} 37... Rg8 {[%clk 0:00:26.8]} 38. Rfe1 {[%clk 0:00:10.2]}
38... f3 {[%clk 0:00:25.9]} 39. Qxg7+ {[%clk 0:00:06.4]} 39... Qxg7+ {[%clk
0:00:24]} 40. Bxg7+ {[%clk 0:00:07]} 40... Rxg7+ {[%clk 0:00:24.9]} 41. Rxg7
{[%clk 0:00:06.6]} 41... Kxg7 {[%clk 0:00:25.8]} 42. c6 {[%clk 0:00:06.5]} 42...
Kg6 {[%clk 0:00:26.7]} 43. c7 {[%clk 0:00:07.4]} 1-0

[Event "Early-Titled-Tuesday-Blitz-September-12-2023"]
[Site "Chess.com"]
[Date "2023.09.12"]
[Round "5"]
[White "dzilleruelo"]
[Black "CrushingKings"]
[Result "1-0"]
[WhiteElo "2336"]
[BlackElo "2521"]
[TimeControl "180+1"]
[EndTime "8:55:05 PDT"]
[Termination "dzilleruelo won on time"]

1. e4 {[%clk 0:03:00.9]} 1... g6 {[%clk 0:02:22.5]} 2. d4 {[%clk 0:02:57.6]}
2... Bg7 {[%clk 0:02:23.4]} 3. Nc3 {[%clk 0:02:57.2]} 3... c6 {[%clk 0:02:20.4]}
4. Bf4 {[%clk 0:02:55.3]} 4... d5 {[%clk 0:02:12]} 5. Qd2 {[%clk 0:02:48.7]}
5... dxe4 {[%clk 0:02:10.1]} 6. Nxe4 {[%clk 0:02:48.3]} 6... Nf6 {[%clk
0:02:11]} 7. Nxf6+ {[%clk 0:02:46.1]} 7... exf6 {[%clk 0:02:06.7]} 8. O-O-O
{[%clk 0:02:41.2]} 8... O-O {[%clk 0:02:01.5]} 9. Bh6 {[%clk 0:02:41]} 9... Bxh6
{[%clk 0:01:50.4]} 10. Qxh6 {[%clk 0:02:41.9]} 10... Qd5 {[%clk 0:01:50.5]} 11.
Kb1 {[%clk 0:02:40]} 11... Qg5 {[%clk 0:01:50.1]} 12. Qxg5 {[%clk 0:02:32.6]}
12... fxg5 {[%clk 0:01:51]} 13. h4 {[%clk 0:02:29.7]} 13... gxh4 {[%clk
0:01:47.7]} 14. Rxh4 {[%clk 0:02:30.6]} 14... Kg7 {[%clk 0:01:48]} 15. Re4
{[%clk 0:02:22.2]} 15... Be6 {[%clk 0:01:36.2]} 16. Nf3 {[%clk 0:02:13]} 16...
Nd7 {[%clk 0:01:35.7]} 17. Ng5 {[%clk 0:02:07.7]} 17... Bf5 {[%clk 0:01:35.4]}
18. Rh4 {[%clk 0:02:06]} 18... h6 {[%clk 0:01:34.8]} 19. Nf3 {[%clk 0:02:05.1]}
19... g5 {[%clk 0:01:23.8]} 20. Rh1 {[%clk 0:02:05.3]} 20... Rfe8 {[%clk
0:01:23.9]} 21. Re1 {[%clk 0:01:53.3]} 21... g4 {[%clk 0:01:01.3]} 22. Ne5
{[%clk 0:01:37.3]} 22... Nxe5 {[%clk 0:00:42.2]} 23. dxe5 {[%clk 0:01:35.8]}
23... Rad8 {[%clk 0:00:42]} 24. Kc1 {[%clk 0:01:35.5]} 24... Rd5 {[%clk
0:00:41.2]} 25. e6 {[%clk 0:01:02.8]} 25... Rc5 {[%clk 0:00:22.4]} 26. c3 {[%clk
0:00:57.7]} 26... Rxe6 {[%clk 0:00:21.3]} 27. Rxe6 {[%clk 0:00:50.2]} 27... fxe6
{[%clk 0:00:21.4]} 28. Be2 {[%clk 0:00:45.5]} 28... Ra5 {[%clk 0:00:20.4]} 29.
a3 {[%clk 0:00:45]} 29... Re5 {[%clk 0:00:20.1]} 30. Kd2 {[%clk 0:00:44.6]}
30... a5 {[%clk 0:00:18]} 31. Rh5 {[%clk 0:00:42.3]} 31... Kg6 {[%clk
0:00:13.6]} 32. Rh4 {[%clk 0:00:41.1]} 32... Kg5 {[%clk 0:00:12.7]} 33. g3
{[%clk 0:00:38.7]} 33... h5 {[%clk 0:00:12.1]} 34. Rh1 {[%clk 0:00:31.1]} 34...
Be4 {[%clk 0:00:12.2]} 35. Re1 {[%clk 0:00:30]} 35... Bf3 {[%clk 0:00:04.2]} 36.
Bxf3 {[%clk 0:00:28.5]} 36... Rxe1 {[%clk 0:00:04.9]} 37. Kxe1 {[%clk
0:00:29.2]} 37... gxf3 {[%clk 0:00:05.6]} 38. Kd2 {[%clk 0:00:30.1]} 38... h4
{[%clk 0:00:02.8]} 39. gxh4+ {[%clk 0:00:29.8]} 39... Kxh4 {[%clk 0:00:03.7]}
40. Ke3 {[%clk 0:00:30]} 40... Kg4 {[%clk 0:00:04.4]} 41. Ke4 {[%clk 0:00:30.5]}
41... e5 {[%clk 0:00:04.9]} 42. c4 {[%clk 0:00:30.6]} 42... b6 {[%clk
0:00:04.1]} 43. b4 {[%clk 0:00:30.5]} 43... axb4 {[%clk 0:00:03.3]} 44. axb4
{[%clk 0:00:31.1]} 44... b5 {[%clk 0:00:03.7]} 45. c5 {[%clk 0:00:29.7]} 45...
Kg5 {[%clk 0:00:02.8]} 46. Kxe5 {[%clk 0:00:29.9]} 46... Kg4 {[%clk 0:00:03]}
47. Ke4 {[%clk 0:00:30.5]} 47... Kg5 {[%clk 0:00:01.4]} 48. Kxf3 {[%clk
0:00:31.4]} 1-0

[Event "Early-Titled-Tuesday-Blitz-September-12-2023"]
[Site "Chess.com"]
[Date "2023.09.12"]
[Round "5"]
[White "TimofeevAr"]
[Black "GlavkonVVS"]
[Result "1-0"]
[WhiteElo "2840"]
[BlackElo "2574"]
[TimeControl "180+1"]
[EndTime "8:55:07 PDT"]
[Termination "TimofeevAr won by checkmate"]

1. c4 {[%clk 0:03:00.9]} 1... c5 {[%clk 0:02:48.8]} 2. Nc3 {[%clk 0:02:59.4]}
2... Nc6 {[%clk 0:02:49]} 3. Nf3 {[%clk 0:02:59.2]} 3... g6 {[%clk 0:02:48.4]}
4. g3 {[%clk 0:02:55.1]} 4... Bg7 {[%clk 0:02:48.7]} 5. Bg2 {[%clk 0:02:55.5]}
5... Nf6 {[%clk 0:02:48.5]} 6. O-O {[%clk 0:02:55.3]} 6... d6 {[%clk 0:02:47]}
7. d4 {[%clk 0:02:54.4]} 7... cxd4 {[%clk 0:02:47.1]} 8. Nxd4 {[%clk 0:02:54.3]}
8... Bd7 {[%clk 0:02:47.8]} 9. e3 {[%clk 0:02:52.7]} 9... O-O {[%clk 0:02:44.6]}
10. b3 {[%clk 0:02:52.3]} 10... a6 {[%clk 0:02:44.6]} 11. Bb2 {[%clk 0:02:51.8]}
11... Rc8 {[%clk 0:02:44.8]} 12. Rc1 {[%clk 0:02:40.6]} 12... Qa5 {[%clk
0:02:38.8]} 13. Nde2 {[%clk 0:02:29.6]} 13... b5 {[%clk 0:02:25.8]} 14. cxb5
{[%clk 0:02:27.4]} 14... axb5 {[%clk 0:02:25.8]} 15. Nf4 {[%clk 0:02:01.4]}
15... b4 {[%clk 0:02:20.4]} 16. Na4 {[%clk 0:02:01.2]} 16... Ne5 {[%clk
0:02:13.2]} 17. Qd2 {[%clk 0:01:56.1]} 17... Bxa4 {[%clk 0:02:02]} 18. bxa4
{[%clk 0:01:55.8]} 18... Qxa4 {[%clk 0:02:00.4]} 19. Rxc8 {[%clk 0:01:40.8]}
19... Rxc8 {[%clk 0:01:59.7]} 20. Bxe5 {[%clk 0:01:41.1]} 20... dxe5 {[%clk
0:01:59.3]} 21. Nd5 {[%clk 0:01:41.6]} 21... Nxd5 {[%clk 0:01:54.4]} 22. Bxd5
{[%clk 0:01:41.3]} 22... Rc2 {[%clk 0:01:35.8]} 23. Qd3 {[%clk 0:01:37]} 23...
Rc3 {[%clk 0:01:32.9]} 24. Qe4 {[%clk 0:01:34.3]} 24... e6 {[%clk 0:01:30.4]}
25. Bb3 {[%clk 0:01:34]} 25... Qe8 {[%clk 0:01:28.5]} 26. Qxb4 {[%clk
0:01:32.8]} 26... Qc8 {[%clk 0:01:27.3]} 27. Rd1 {[%clk 0:01:25.6]} 27... Bf8
{[%clk 0:01:25.8]} 28. Qe4 {[%clk 0:01:25.3]} 28... Qc5 {[%clk 0:01:23.7]} 29.
Kg2 {[%clk 0:01:24.1]} 29... Kg7 {[%clk 0:01:23.5]} 30. Rd7 {[%clk 0:01:22.4]}
30... Be7 {[%clk 0:01:15.4]} 31. Qb7 {[%clk 0:01:21.9]} 31... Kf8 {[%clk
0:01:04.3]} 32. Ba4 {[%clk 0:01:10.3]} 32... h5 {[%clk 0:00:54.3]} 33. h4 {[%clk
0:01:09.2]} 33... Rc4 {[%clk 0:00:50.1]} 34. Bb3 {[%clk 0:00:55.4]} 34... Qc6+
{[%clk 0:00:48.9]} 35. Qxc6 {[%clk 0:00:51.4]} 35... Rxc6 {[%clk 0:00:49.8]} 36.
Rb7 {[%clk 0:00:51]} 36... Rc3 {[%clk 0:00:48.8]} 37. a4 {[%clk 0:00:50.1]}
37... Rc5 {[%clk 0:00:46.2]} 38. Bd1 {[%clk 0:00:47.9]} 38... Rc1 {[%clk
0:00:44.9]} 39. Be2 {[%clk 0:00:47.2]} 39... Rc2 {[%clk 0:00:43.6]} 40. Bb5
{[%clk 0:00:47.1]} 40... Bc5 {[%clk 0:00:40.7]} 41. Rc7 {[%clk 0:00:46.8]} 41...
Rc3 {[%clk 0:00:36.5]} 42. a5 {[%clk 0:00:44.8]} 42... Bd4 {[%clk 0:00:18.5]}
43. Rxc3 {[%clk 0:00:44.2]} 43... Bxc3 {[%clk 0:00:18.8]} 44. a6 {[%clk
0:00:44.5]} 44... Ke7 {[%clk 0:00:08.6]} 45. a7 {[%clk 0:00:44.5]} 45... Kd6
{[%clk 0:00:07.8]} 46. a8=Q {[%clk 0:00:44.5]} 46... Ke7 {[%clk 0:00:07.7]} 47.
Qb7+ {[%clk 0:00:43.9]} 47... Kf6 {[%clk 0:00:07.8]} 48. Be8 {[%clk 0:00:43.5]}
48... Kf5 {[%clk 0:00:07.8]} 49. Qxf7+ {[%clk 0:00:43.4]} 49... Kg4 {[%clk
0:00:07.7]} 50. Qxg6# {[%clk 0:00:43.2]} 1-0

[Event "Early-Titled-Tuesday-Blitz-September-12-2023"]
[Site "Chess.com"]
[Date "2023.09.12"]
[Round "5"]
[White "hellokostya"]
[Black "stasOR4ik"]
[Result "1-0"]
[WhiteElo "2605"]
[BlackElo "2436"]
[TimeControl "180+1"]
[EndTime "8:55:07 PDT"]
[Termination "hellokostya won by resignation"]

1. Nf3 {[%clk 0:03:00.9]} 1... d5 {[%clk 0:03:00.1]} 2. e3 {[%clk 0:03:00.7]}
2... c5 {[%clk 0:02:59.2]} 3. c4 {[%clk 0:03:00.3]} 3... Nf6 {[%clk 0:02:58.5]}
4. cxd5 {[%clk 0:02:58.8]} 4... Nxd5 {[%clk 0:02:58.6]} 5. Nc3 {[%clk
0:02:58.5]} 5... Nc6 {[%clk 0:02:57.2]} 6. b3 {[%clk 0:02:55.9]} 6... g6 {[%clk
0:02:53.1]} 7. Bb2 {[%clk 0:02:54.5]} 7... Bg7 {[%clk 0:02:53.2]} 8. Be2 {[%clk
0:02:49.4]} 8... O-O {[%clk 0:02:52.5]} 9. a3 {[%clk 0:02:48.6]} 9... b6 {[%clk
0:02:46.6]} 10. Qc2 {[%clk 0:02:47.1]} 10... Bf5 {[%clk 0:02:33]} 11. e4 {[%clk
0:02:40]} 11... Nxc3 {[%clk 0:02:32]} 12. dxc3 {[%clk 0:02:33.4]} 12... Bg4
{[%clk 0:02:26.2]} 13. h3 {[%clk 0:02:31.2]} 13... Bxf3 {[%clk 0:02:02.4]} 14.
Bxf3 {[%clk 0:02:32.1]} 14... Qc7 {[%clk 0:01:58.3]} 15. O-O {[%clk 0:02:31.2]}
15... Rad8 {[%clk 0:01:57.2]} 16. Rad1 {[%clk 0:02:29.9]} 16... Qf4 {[%clk
0:01:51.5]} 17. Be2 {[%clk 0:02:08.3]} 17... Be5 {[%clk 0:01:42.5]} 18. g3
{[%clk 0:02:07.5]} 18... Qf6 {[%clk 0:01:42.5]} 19. f4 {[%clk 0:02:06.3]} 19...
Bc7 {[%clk 0:01:39.9]} 20. e5 {[%clk 0:01:58.5]} 20... Qe6 {[%clk 0:01:35.2]}
21. Bg4 {[%clk 0:01:53.7]} 21... f5 {[%clk 0:01:31.4]} 22. Bf3 {[%clk 0:01:54]}
22... Nxe5 {[%clk 0:01:17.2]} 23. fxe5 {[%clk 0:01:54.9]} 23... Qxe5 {[%clk
0:01:17.6]} 24. Qg2 {[%clk 0:01:49.8]} 24... Qxg3 {[%clk 0:01:07.6]} 25. Qxg3
{[%clk 0:01:44.5]} 25... Bxg3 {[%clk 0:01:08.5]} 26. Bd5+ {[%clk 0:01:41]} 26...
Kg7 {[%clk 0:01:02.1]} 27. c4+ {[%clk 0:01:40.7]} 27... Kh6 {[%clk 0:00:57]} 28.
Kg2 {[%clk 0:01:41.2]} 28... Bd6 {[%clk 0:00:56]} 29. Bc1+ {[%clk 0:01:36]}
29... g5 {[%clk 0:00:50.2]} 30. h4 {[%clk 0:01:35.1]} 30... f4 {[%clk
0:00:50.7]} 31. hxg5+ {[%clk 0:01:34.7]} 31... Kxg5 {[%clk 0:00:51]} 32. Kf3
{[%clk 0:01:34.5]} 32... e5 {[%clk 0:00:48.4]} 33. Rg1+ {[%clk 0:01:33.4]} 33...
Kf6 {[%clk 0:00:48.1]} 34. Rh1 {[%clk 0:01:33.2]} 34... Rd7 {[%clk 0:00:42.3]}
35. Rdg1 {[%clk 0:01:32.8]} 35... Rg7 {[%clk 0:00:30.6]} 36. Rh6+ {[%clk
0:01:31.5]} 36... Rg6 {[%clk 0:00:30.8]} 37. Rhh1 {[%clk 0:01:13.9]} 37... Kf5
{[%clk 0:00:20.6]} 38. Be4+ {[%clk 0:01:13.9]} 38... Kf6 {[%clk 0:00:20.8]} 39.
Bxg6 {[%clk 0:01:13.5]} 39... hxg6 {[%clk 0:00:21.7]} 40. Rh6 {[%clk 0:01:05.8]}
40... Kf5 {[%clk 0:00:20.6]} 41. Rgxg6 {[%clk 0:00:55.9]} 41... e4+ {[%clk
0:00:20.6]} 42. Kf2 {[%clk 0:00:55.6]} 42... e3+ {[%clk 0:00:19.6]} 43. Kf3
{[%clk 0:00:53.4]} 43... Be5 {[%clk 0:00:19.8]} 44. Rg4 {[%clk 0:00:48.7]} 44...
Rd8 {[%clk 0:00:18.7]} 45. Rh5+ {[%clk 0:00:48.6]} 45... Kf6 {[%clk 0:00:19]}
46. Rh6+ {[%clk 0:00:28.1]} 46... Kf7 {[%clk 0:00:19.1]} 47. Rg5 {[%clk
0:00:27.5]} 47... Rd1 {[%clk 0:00:15.7]} 48. Rxe5 {[%clk 0:00:25.4]} 48... Rf1+
{[%clk 0:00:15.6]} 49. Kg4 {[%clk 0:00:23.4]} 49... Rxc1 {[%clk 0:00:15.1]} 50.
Kxf4 {[%clk 0:00:22.9]} 50... Rc3 {[%clk 0:00:15.1]} 51. Rxe3 {[%clk 0:00:22.4]}
1-0

[Event "Early-Titled-Tuesday-Blitz-September-12-2023"]
[Site "Chess.com"]
[Date "2023.09.12"]
[Round "5"]
[White "Nf3c5"]
[Black "Zheenbekov86"]
[Result "1-0"]
[WhiteElo "2587"]
[BlackElo "2405"]
[TimeControl "180+1"]
[EndTime "8:55:07 PDT"]
[Termination "Nf3c5 won on time"]

1. e4 {[%clk 0:02:56.9]} 1... e5 {[%clk 0:02:59.7]} 2. Nf3 {[%clk 0:02:54.8]}
2... Nc6 {[%clk 0:02:59.4]} 3. Bc4 {[%clk 0:02:52.6]} 3... Nf6 {[%clk
0:02:59.1]} 4. Ng5 {[%clk 0:02:52]} 4... d5 {[%clk 0:02:59]} 5. exd5 {[%clk
0:02:51.7]} 5... Na5 {[%clk 0:02:59.1]} 6. Bb5+ {[%clk 0:02:52.2]} 6... c6
{[%clk 0:02:59.2]} 7. dxc6 {[%clk 0:02:52.4]} 7... bxc6 {[%clk 0:02:59.4]} 8.
Be2 {[%clk 0:02:52.4]} 8... h6 {[%clk 0:02:59.2]} 9. Nh3 {[%clk 0:02:52.2]} 9...
Bd6 {[%clk 0:02:54.8]} 10. d3 {[%clk 0:02:49.3]} 10... O-O {[%clk 0:02:54.2]}
11. O-O {[%clk 0:02:45.2]} 11... c5 {[%clk 0:02:50.7]} 12. Kh1 {[%clk
0:02:44.3]} 12... Rb8 {[%clk 0:02:47.4]} 13. Ng1 {[%clk 0:02:42.6]} 13... Qc7
{[%clk 0:02:40.5]} 14. Nf3 {[%clk 0:02:40.9]} 14... e4 {[%clk 0:02:22.4]} 15.
dxe4 {[%clk 0:02:33.9]} 15... Nxe4 {[%clk 0:02:22.2]} 16. Nbd2 {[%clk 0:02:32]}
16... Nf6 {[%clk 0:02:05.7]} 17. b3 {[%clk 0:01:51.8]} 17... Rd8 {[%clk
0:01:50.8]} 18. Bb2 {[%clk 0:01:49.7]} 18... Nd5 {[%clk 0:01:50.7]} 19. Re1
{[%clk 0:01:26.5]} 19... Bf5 {[%clk 0:01:40.5]} 20. Bf1 {[%clk 0:01:19.3]} 20...
Nb4 {[%clk 0:01:36.7]} 21. Ne4 {[%clk 0:00:50.4]} 21... Bxh2 {[%clk 0:01:29.6]}
22. Qe2 {[%clk 0:00:49.4]} 22... Re8 {[%clk 0:01:11.7]} 23. Nf6+ {[%clk
0:00:45.3]} 23... gxf6 {[%clk 0:01:08.5]} 24. Qxe8+ {[%clk 0:00:45.8]} 24...
Rxe8 {[%clk 0:01:08.3]} 25. Rxe8+ {[%clk 0:00:46.5]} 25... Kg7 {[%clk
0:01:08.1]} 26. Nxh2 {[%clk 0:00:45.3]} 26... Nxc2 {[%clk 0:01:03]} 27. Rd1
{[%clk 0:00:44]} 27... Nc6 {[%clk 0:00:51.7]} 28. Nf3 {[%clk 0:00:21.3]} 28...
Bg4 {[%clk 0:00:49]} 29. Be2 {[%clk 0:00:21.2]} 29... Bxf3 {[%clk 0:00:46]} 30.
Bxf3 {[%clk 0:00:21.5]} 30... N2d4 {[%clk 0:00:38.4]} 31. Rde1 {[%clk
0:00:16.6]} 31... Nxf3 {[%clk 0:00:36.4]} 32. gxf3 {[%clk 0:00:16.8]} 32... Qf4
{[%clk 0:00:36.1]} 33. Kg2 {[%clk 0:00:16.3]} 33... Nb4 {[%clk 0:00:23.2]} 34.
R1e4 {[%clk 0:00:14.9]} 34... Qd2 {[%clk 0:00:14.1]} 35. Rg4+ {[%clk 0:00:14.1]}
35... Kh7 {[%clk 0:00:14.3]} 36. Bxf6 {[%clk 0:00:14.7]} 1-0

[Event "Early-Titled-Tuesday-Blitz-September-12-2023"]
[Site "Chess.com"]
[Date "2023.09.12"]
[Round "5"]
[White "ItsCheckM8Mate"]
[Black "JiiHart"]
[Result "0-1"]
[WhiteElo "2377"]
[BlackElo "2144"]
[TimeControl "180+1"]
[EndTime "8:55:07 PDT"]
[Termination "JiiHart won on time"]

1. d4 {[%clk 0:03:00.9]} 1... d5 {[%clk 0:02:59.3]} 2. Nc3 {[%clk 0:02:59.2]}
2... e6 {[%clk 0:02:58.5]} 3. Bf4 {[%clk 0:02:58.4]} 3... a6 {[%clk 0:02:57.3]}
4. Nf3 {[%clk 0:02:55.5]} 4... c5 {[%clk 0:02:55.9]} 5. e3 {[%clk 0:02:54.8]}
5... Nf6 {[%clk 0:02:48.8]} 6. Be2 {[%clk 0:02:44.6]} 6... Nc6 {[%clk
0:02:47.5]} 7. O-O {[%clk 0:02:42.7]} 7... Be7 {[%clk 0:02:47.3]} 8. Ne5 {[%clk
0:02:33.1]} 8... O-O {[%clk 0:02:25.3]} 9. dxc5 {[%clk 0:02:16.4]} 9... Bxc5
{[%clk 0:02:21.1]} 10. Bd3 {[%clk 0:02:14.5]} 10... Bd6 {[%clk 0:02:05.4]} 11.
Nxc6 {[%clk 0:02:08.8]} 11... bxc6 {[%clk 0:02:05.2]} 12. Bxd6 {[%clk
0:02:00.8]} 12... Qxd6 {[%clk 0:02:04.8]} 13. e4 {[%clk 0:02:01.5]} 13... e5
{[%clk 0:01:57.9]} 14. Qf3 {[%clk 0:01:57.2]} 14... d4 {[%clk 0:01:51.9]} 15.
Na4 {[%clk 0:01:47.4]} 15... Be6 {[%clk 0:01:48.3]} 16. b3 {[%clk 0:01:41.5]}
16... c5 {[%clk 0:01:23]} 17. Nb2 {[%clk 0:01:37]} 17... Nd7 {[%clk 0:01:08.9]}
18. a4 {[%clk 0:01:28.1]} 18... a5 {[%clk 0:01:04.9]} 19. Bc4 {[%clk 0:01:17.5]}
19... Nb6 {[%clk 0:01:01.2]} 20. Bxe6 {[%clk 0:01:09.3]} 20... Qxe6 {[%clk
0:01:01]} 21. Qe2 {[%clk 0:01:08.2]} 21... Rfc8 {[%clk 0:00:57.7]} 22. f4 {[%clk
0:00:43.8]} 22... f6 {[%clk 0:00:48.5]} 23. fxe5 {[%clk 0:00:42.5]} 23... fxe5
{[%clk 0:00:48.4]} 24. Rf5 {[%clk 0:00:41.1]} 24... c4 {[%clk 0:00:47.3]} 25.
bxc4 {[%clk 0:00:32.8]} 25... Nxc4 {[%clk 0:00:47.2]} 26. Nd3 {[%clk 0:00:30]}
26... g6 {[%clk 0:00:38.8]} 27. Rf2 {[%clk 0:00:20.5]} 27... Rf8 {[%clk
0:00:34.3]} 28. Rxf8+ {[%clk 0:00:15.8]} 28... Rxf8 {[%clk 0:00:32.9]} 29. Nc5
{[%clk 0:00:16]} 29... Qf7 {[%clk 0:00:23.7]} 30. h3 {[%clk 0:00:12.1]} 30...
Ne3 {[%clk 0:00:22.8]} 31. Nd3 {[%clk 0:00:08.5]} 31... Qe7 {[%clk 0:00:19.8]}
32. c3 {[%clk 0:00:08.3]} 32... Qd6 {[%clk 0:00:14.1]} 33. Kh2 {[%clk 0:00:03]}
33... Kg7 {[%clk 0:00:02.7]} 34. Rb1 {[%clk 0:00:01.8]} 34... Rf7 {[%clk
0:00:02.6]} 35. cxd4 {[%clk 0:00:01]} 35... Qxd4 {[%clk 0:00:02]} 0-1